bitfinex/quotes_BTCUSD_20230118
["timestamp","ask_amount","ask_price","bid_price","bid_amount"]
[1674025631286,0.587866,21260.0,21256.0,0.94519373]
[1674025631811,0.587866,21260.0,21256.0,0.77626024]
[1674025632065,0.1104,21258.0,21256.0,0.13062232]
[1674025632318,0.321873,21257.0,21256.0,0.018]
[1674025633103,0.321873,21257.0,21254.0,0.79168337]
[1674025633370,0.580811,21258.0,21255.0,0.11262232]
[1674025633627,0.580811,21258.0,21254.0,0.97114437]
[1674025633911,0.77153695,21258.0,21255.0,0.11262232]
[1674025634174,0.007,21257.0,21254.0,0.98914437]
[1674025634432,0.580811,21258.0,21254.0,0.97114437]
[1674025634686,0.587811,21258.0,21254.0,0.98914437]
[1674025635552,0.1174,21258.0,21254.0,1.45964337]
[1674025635808,0.1104,21258.0,21255.0,0.11285651]
[1674025636066,0.007,21257.0,21255.0,0.11285651]
[1674025636567,0.007,21257.0,21255.0,0.11262232]
[1674025637579,0.007,21257.0,21254.0,1.00714437]
[1674025637886,0.580812,21258.0,21254.0,0.97114437]
[1674025638621,1.24194895,21258.0,21254.0,0.33172988]
[1674025638876,1.051223,21258.0,21254.0,0.33172988]
[1674025639898,0.007,21257.0,21254.0,0.34972988]
[1674025640173,0.4069304,21257.0,21254.0,0.33172988]
[1674025640430,0.4069304,21257.0,21254.0,0.34972988]
[1674025640685,0.8773694,21257.0,21254.0,0.34972988]
[1674025641210,0.8773694,21257.0,21254.0,0.33172988]
[1674025641477,1.3548024,21257.0,21254.0,0.23710756]
[1674025642773,1.4652024,21257.0,21254.0,0.05764656]
[1674025643067,0.321873,21256.0,21254.0,0.05764656]
[1674025643324,0.321873,21255.0,21254.0,0.05764656]
[1674025643594,0.9947854,21257.0,21254.0,0.05764656]
[1674025644147,0.9877854,21257.0,21254.0,0.03964656]
[1674025644630,0.007,21255.0,21254.0,0.05764656]
[1674025644632,0.321873,21256.0,21254.0,0.03964656]
[1674025644899,0.321873,21255.0,21254.0,0.05764656]
[1674025645156,0.470458,21256.0,21254.0,0.05764656]
[1674025646490,0.1103,21255.0,21254.0,0.05764656]
[1674025647528,0.1173,21255.0,21254.0,0.05764656]
[1674025647809,0.439173,21255.0,21254.0,0.05764656]
[1674025648071,0.1173,21255.0,21254.0,0.05764656]
[1674025651696,0.587777,21255.0,21254.0,0.05764656]
[1674025652438,0.1173,21255.0,21254.0,0.05764656]
[1674025652699,0.007,21255.0,21254.0,0.05764656]
[1674025653757,0.0831,21255.0,21254.0,0.05764656]
[1674025654022,0.007,21255.0,21254.0,0.05764656]
[1674025655082,0.007,21255.0,21252.0,0.40920168]
[1674025655377,0.007,21255.0,21252.0,0.87973968]
[1674025655928,0.581171,21256.0,21252.0,0.87973968]
[1674025656183,0.009,21255.0,21252.0,0.87973968]
[1674025656432,0.581171,21256.0,21252.0,0.87973968]
[1674025656688,0.01,21255.0,21252.0,0.87973968]
[1674025657194,0.42268754,21255.0,21252.0,0.71080619]
[1674025657720,0.42268754,21255.0,21252.0,0.87973968]
[1674025659049,0.42268754,21255.0,21253.0,0.11262232]
[1674025660552,0.41268754,21255.0,21253.0,0.11262232]
[1674025660803,0.41868754,21255.0,21253.0,0.11262232]
[1674025662687,0.006,21255.0,21253.0,0.28155581]
[1674025662905,0.006,21255.0,21254.0,0.11262232]
[1674025663977,0.470451,21257.0,21254.0,0.11262232]
[1674025664207,0.034,21255.0,21254.0,0.11262232]
[1674025664728,0.034,21255.0,21253.0,0.75207681]
[1674025664952,0.034,21255.0,21253.0,0.58314332]
[1674025665238,0.470451,21257.0,21253.0,0.58314332]
[1674025665472,0.561451,21257.0,21253.0,0.61801519]
[1674025665726,0.470451,21257.0,21253.0,0.61801519]
[1674025665993,0.006,21255.0,21253.0,0.58314332]
[1674025666249,0.37583082,21256.0,21253.0,0.58314332]
[1674025666550,0.37583082,21256.0,21253.0,0.75207681]
[1674025667652,0.40983082,21256.0,21254.0,0.11262232]
[1674025668697,0.37583082,21256.0,21254.0,0.11262232]
[1674025668921,0.46683082,21256.0,21254.0,0.28155581]
[1674025669192,0.46683082,21256.0,21254.0,0.83738248]
[1674025669685,0.46683082,21256.0,21254.0,0.11262232]
[1674025672178,0.091,21256.0,21255.0,0.11262232]
[1674025673221,0.96970071,21258.0,21255.0,0.11262232]
[1674025673480,0.091,21256.0,21255.0,0.11262232]
[1674025673734,0.091,21256.0,21255.0,0.28155581]
[1674025673996,0.091,21256.0,21255.0,0.58309932]
[1674025675820,0.091,21256.0,21255.0,0.11262232]
[1674025677087,0.091,21256.0,21255.0,0.28155581]
[1674025677340,1e-08,21256.0,21255.0,1.30783879]
[1674025679466,1e-08,21256.0,21255.0,0.75203281]
[1674025680236,1e-08,21256.0,21255.0,1.30782922]
[1674025683354,1e-08,21256.0,21255.0,1.89092855]
[1674025683849,1e-08,21256.0,21255.0,2.00355087]
[1674025684382,1e-08,21256.0,21255.0,1.89110958]
[1674025684646,0.96873117,21260.0,21255.0,1.72199506]
[1674025684924,0.96873117,21260.0,21256.0,0.14761308]
[1674025685437,0.96873117,21260.0,21256.0,0.61805908]
[1674025686057,0.96973117,21260.0,21256.0,0.61805908]
[1674025686238,0.96973117,21260.0,21256.0,0.58318721]
[1674025686498,0.96973117,21260.0,21256.0,0.61805908]
[1674025686757,0.49935017,21260.0,21256.0,1.08851408]
[1674025687022,0.38785017,21260.0,21257.0,0.1122991]
[1674025687296,0.001,21260.0,21257.0,1.36987199]
[1674025687566,0.001,21260.0,21258.0,0.28185302]
[1674025687827,0.49483723,21262.0,21259.0,0.470389]
[1674025688091,0.001,21260.0,21259.0,0.50526087]
[1674025688350,0.49483723,21262.0,21259.0,0.470389]
[1674025688618,0.001,21260.0,21259.0,0.470389]
[1674025689401,0.49483723,21262.0,21259.0,0.470389]
[1674025690234,0.49483723,21262.0,21259.0,0.478389]
[1674025690504,0.49583723,21262.0,21259.0,0.478389]
[1674025691068,0.03774227,21261.0,21259.0,0.478389]
[1674025692164,0.03774227,21261.0,21259.0,0.940778]
[1674025692416,0.03874227,21261.0,21259.0,0.478389]
[1674025692929,0.03874227,21261.0,21259.0,0.948778]
[1674025695783,0.03874227,21261.0,21260.0,0.59167565]
[1674025696042,0.00479464,21264.0,21261.0,0.06861171]
[1674025696314,0.00479464,21264.0,21263.0,0.1107]
[1674025696624,0.00479464,21264.0,21263.0,1.0513]
[1674025697421,0.00479464,21264.0,21263.0,1.0643]
[1674025698791,0.00479464,21264.0,21263.0,1.0645341]
[1674025698792,0.03925077,21264.0,21263.0,1.0645341]
[1674025699843,0.00479464,21264.0,21263.0,1.0645341]
[1674025701518,0.00479464,21264.0,21263.0,1.0643]
[1674025702316,0.00479464,21264.0,21263.0,1.0645341]
[1674025702827,0.00479464,21264.0,21263.0,1.3645341]
[1674025703612,0.00479464,21264.0,21263.0,1.0645341]
[1674025704126,0.00479464,21264.0,21263.0,1.0643]
[1674025704396,0.00479464,21264.0,21263.0,1.0645341]
[1674025706254,0.00479464,21264.0,21263.0,0.91669315]
[1674025707320,5.00496291,21265.0,21263.0,0.91669315]
[1674025707575,5.00496291,21265.0,21264.0,0.1104]
[1674025707838,5.00496291,21265.0,21264.0,1.050956]
[1674025710041,5.00496291,21265.0,21264.0,1.057956]
[1674025712418,5.00496291,21265.0,21264.0,0.947556]
[1674025712940,5.00496291,21265.0,21264.0,0.477278]
[1674025713720,5.00496291,21265.0,21264.0,0.007]
[1674025718163,5.00496291,21265.0,21264.0,0.947556]
[1674025718426,5.00496291,21265.0,21264.0,1.057956]
[1674025718682,5.00496291,21265.0,21264.0,0.477278]
[1674025718941,5.03946758,21265.0,21264.0,0.007]
[1674025720020,5.00496291,21265.0,21264.0,0.007]
[1674025722811,5.14786232,21265.0,21264.0,0.007]
[1674025727235,5.03766232,21265.0,21264.0,1.1281323]
[1674025727510,5.03766232,21265.0,21264.0,1.59584021]
[1674025727773,5.03766232,21265.0,21264.0,1.20584823]
[1674025728028,5.03766232,21265.0,21264.0,1.36764021]
[1674025728541,5.03766232,21265.0,21264.0,1.19884823]
[1674025728808,5.00496291,21265.0,21264.0,1.21184823]
[1674025729089,5.00496291,21265.0,21264.0,1.19884823]
[1674025729902,5.00496291,21265.0,21264.0,1.29184823]
[1674025730163,5.00496291,21265.0,21264.0,2.64993375]
[1674025730422,5.00496291,21265.0,21264.0,2.46269758]
[1674025730674,5.00496291,21265.0,21264.0,2.35006755]
[1674025730944,5.00487339,21265.0,21264.0,2.35006755]
[1674025731470,5.00487339,21265.0,21264.0,2.18114177]
[1674025731727,5.00487339,21265.0,21264.0,2.35006506]
[1674025732002,5.00487339,21265.0,21264.0,2.18114177]
[1674025732319,5.00487339,21265.0,21264.0,2.76269758]
[1674025732777,5.00487339,21265.0,21264.0,2.65229758]
[1674025734574,5.00487339,21265.0,21264.0,2.65242066]
[1674025735552,5.00487339,21265.0,21264.0,2.42705293]
[1674025736339,5.00487339,21265.0,21264.0,2.6523985]
[1674025737134,5.00487339,21265.0,21264.0,2.42705293]
[1674025737410,4.41232256,21265.0,21264.0,2.42705293]
[1674025739282,4.41232256,21265.0,21264.0,2.42728702]
[1674025739540,4.41232256,21265.0,21264.0,2.65257849]
[1674025739800,4.41232256,21265.0,21264.0,2.65257871]
[1674025740237,4.41232256,21265.0,21264.0,2.65258038]
[1674025740464,4.41232256,21265.0,21264.0,2.37102457]
[1674025740969,4.41232256,21265.0,21264.0,2.23997923]
[1674025741289,4.41232256,21265.0,21264.0,2.53997923]
[1674025741531,4.41232256,21265.0,21264.0,2.53997752]
[1674025743094,4.41232256,21265.0,21264.0,2.37102457]
[1674025743611,4.41232256,21265.0,21264.0,2.65258038]
[1674025743908,4.44322227,21265.0,21264.0,2.42728702]
[1674025744107,4.44322227,21265.0,21264.0,2.65254621]
[1674025745144,4.44322227,21265.0,21264.0,2.42728702]
[1674025745405,3.70255963,21265.0,21264.0,2.42728702]
[1674025745925,3.67165992,21265.0,21264.0,2.42728702]
[1674025746188,3.67165992,21265.0,21264.0,2.65249888]
[1674025746475,3.67165992,21265.0,21264.0,2.84621898]
[1674025746715,3.67165992,21265.0,21264.0,2.25573121]
[1674025749045,3.67165992,21265.0,21264.0,2.5371657]
[1674025749296,3.66545992,21265.0,21264.0,2.25573121]
[1674025749832,3.65925992,21265.0,21264.0,2.16273121]
[1674025750085,3.65925992,21265.0,21264.0,2.44413051]
[1674025750868,3.65925992,21265.0,21264.0,2.53713051]
[1674025756611,3.65925992,21265.0,21264.0,2.25573121]
[1674025757943,3.65925992,21265.0,21264.0,2.53712118]
[1674025758446,3.65925992,21265.0,21264.0,2.25573121]
[1674025760518,3.65925992,21265.0,21264.0,2.14573121]
[1674025761793,3.65925992,21265.0,21264.0,2.12691895]
[1674025762123,3.65925992,21265.0,21264.0,1.75795945]
[1674025762335,3.76995992,21265.0,21264.0,1.31500156]
[1674025762604,3.76995992,21265.0,21264.0,1.1461348]
[1674025763171,4.6905929,21265.0,21264.0,0.093]
[1674025763653,4.3687199,21265.0,21264.0,0.093]
[1674025763923,4.6905929,21265.0,21264.0,0.093]
[1674025764183,4.3687199,21265.0,21264.0,0.093]
[1674025765225,4.2449199,21265.0,21264.0,0.093]
[1674025765754,4.2449199,21265.0,21264.0,0.2055788]
[1674025766037,4.2449199,21265.0,21264.0,0.093]
[1674025766294,4.2449199,21265.0,21264.0,0.2055788]
[1674025767360,4.2449199,21265.0,21264.0,0.093]
[1674025767877,4.27537869,21265.0,21264.0,0.093]
[1674025772328,4.70685169,21265.0,21264.0,0.093]
[1674025772598,5.75766369,21265.0,21264.0,0.093]
[1674025773109,5.64736369,21265.0,21264.0,0.093]
[1674025773363,0.15,21264.0,21260.0,0.75179556]
[1674025773670,0.1107,21262.0,21260.0,0.5829288]
[1674025773951,0.30142595,21262.0,21260.0,1.0532948]
[1674025774186,0.1107,21262.0,21260.0,1.0532948]
[1674025774433,0.1107,21262.0,21260.0,0.940716]
[1674025774695,0.1117,21262.0,21260.0,1.025716]
[1674025774962,0.1069,21262.0,21260.0,0.6679288]
[1674025775315,0.1115,21262.0,21260.0,0.55535]
[1674025776001,0.0304064,21261.0,21260.0,0.55535]
[1674025776264,0.1115,21262.0,21260.0,0.55535]
[1674025777004,0.1105,21262.0,21260.0,0.47035]
[1674025777247,0.1105,21262.0,21259.0,0.11524231]
[1674025777248,0.1105,21261.0,21259.0,0.11524231]
[1674025777499,0.1105,21262.0,21259.0,0.11524231]
[1674025777753,0.1105,21262.0,21260.0,0.078]
[1674025778040,0.02960623,21261.0,21259.0,0.22782111]
[1674025778313,0.02960623,21261.0,21260.0,0.078]
[1674025778567,0.02960623,21261.0,21259.0,0.11524231]
[1674025778829,0.1105,21262.0,21259.0,0.11524231]
[1674025779617,0.1115,21262.0,21260.0,0.079]
[1674025779869,0.02957149,21261.0,21259.0,0.58562831]
[1674025780137,0.02957149,21261.0,21259.0,0.66462831]
[1674025780854,0.1105,21262.0,21259.0,0.58562831]
[1674025781119,0.001,21261.0,21259.0,0.66462831]
[1674025781379,0.001,21261.0,21259.0,1.13501731]
[1674025781635,0.001,21261.0,21259.0,1.05601731]
[1674025781894,0.02954662,21261.0,21259.0,1.05601731]
[1674025782631,0.13994662,21261.0,21259.0,1.05601731]
[1674025782881,0.14094662,21261.0,21259.0,1.13501731]
[1674025784129,0.14094662,21261.0,21259.0,0.66462831]
[1674025785961,0.14094662,21261.0,21259.0,1.13501731]
[1674025787003,0.03054662,21261.0,21259.0,1.13501731]
[1674025789355,0.03054662,21261.0,21259.0,1.24759611]
[1674025789826,0.03054662,21261.0,21259.0,1.13501731]
[1674025790074,0.03054662,21261.0,21259.0,1.24759611]
[1674025790328,0.03054662,21261.0,21259.0,1.39759611]
[1674025790329,0.02494662,21261.0,21259.0,1.39759611]
[1674025790580,0.02494662,21261.0,21259.0,1.24759611]
[1674025792358,0.02494662,21261.0,21259.0,1.39759611]
[1674025792624,0.02494662,21261.0,21260.0,1.10174038]
[1674025792883,0.1107,21264.0,21261.0,0.03294004]
[1674025793160,0.1107,21264.0,21261.0,0.06781191]
[1674025793423,0.1107,21264.0,21262.0,0.940644]
[1674025793937,0.02879528,21263.0,21262.0,0.940644]
[1674025794953,0.1227,21264.0,21262.0,0.943644]
[1674025795211,0.1107,21264.0,21262.0,0.940644]
[1674025795469,0.1107,21264.0,21262.0,0.962644]
[1674025795798,0.02879528,21263.0,21262.0,0.962644]
[1674025796290,0.02879528,21263.0,21262.0,0.940644]
[1674025796540,0.02879528,21263.0,21262.0,0.943644]
[1674025796802,0.1227,21264.0,21262.0,0.943644]
[1674025797831,0.02879528,21263.0,21262.0,0.940644]
[1674025798104,0.02879528,21263.0,21262.0,0.961644]
[1674025798357,0.02879528,21263.0,21262.0,0.940644]
[1674025798613,0.02879528,21263.0,21262.0,0.943644]
[1674025798879,0.1107,21264.0,21262.0,1.05308611]
[1674025799138,0.1107,21264.0,21262.0,1.07408611]
[1674025799923,0.02879528,21263.0,21262.0,1.07408611]
[1674025800456,0.02879528,21263.0,21262.0,1.05308611]
[1674025800717,0.02879528,21263.0,21262.0,1.05608611]
[1674025801052,0.1107,21264.0,21262.0,1.05308611]
[1674025801235,0.1107,21264.0,21262.0,1.07408611]
[1674025801751,0.02879528,21263.0,21262.0,1.07408611]
[1674025801975,0.02879528,21263.0,21262.0,1.05308611]
[1674025802348,0.02879528,21263.0,21262.0,1.22495287]
[1674025802586,0.02879528,21263.0,21262.0,2.15413997]
[1674025802842,3.75685992,21265.0,21262.0,2.17513997]
[1674025803096,3.75685992,21265.0,21263.0,0.11264999]
[1674025803351,3.75685992,21265.0,21264.0,0.470278]
[1674025803622,3.75685992,21265.0,21264.0,0.940556]
[1674025803870,3.76985992,21265.0,21264.0,0.940556]
[1674025804950,3.75685992,21265.0,21264.0,0.940556]
[1674025805176,3.76985992,21265.0,21264.0,0.947556]
[1674025806976,3.76985992,21265.0,21264.0,0.477278]
[1674025808287,3.76985992,21265.0,21264.0,0.007]
[1674025808543,3.76985992,21265.0,21264.0,0.477278]
[1674025811146,3.88005992,21265.0,21264.0,0.947556]
[1674025811649,3.76935992,21265.0,21264.0,0.947556]
[1674025812183,3.75635992,21265.0,21264.0,0.940556]
[1674025812454,3.16376241,21265.0,21264.0,1.07420599]
[1674025814238,3.16376241,21265.0,21264.0,0.961556]
[1674025819312,3.14996806,21265.0,21264.0,0.961556]
[1674025821693,3.14996806,21265.0,21264.0,0.491278]
[1674025823072,3.14996806,21265.0,21264.0,0.961556]
[1674025823585,3.14996806,21265.0,21264.0,0.491278]
[1674025825916,3.14996806,21265.0,21264.0,0.961556]
[1674025826170,3.14996806,21265.0,21264.0,1.07420599]
[1674025826760,3.14996806,21265.0,21264.0,1.24307275]
[1674025826942,3.14996806,21265.0,21264.0,1.71704363]
[1674025828212,3.03976806,21265.0,21264.0,1.96067179]
[1674025828461,3.03976806,21265.0,21264.0,2.129773]
[1674025830324,3.03976806,21265.0,21264.0,1.66271336]
[1674025830862,3.03976806,21265.0,21264.0,1.66067179]
[1674025831110,3.03976806,21265.0,21264.0,1.60669143]
[1674025831364,3.03976806,21265.0,21264.0,1.60464986]
[1674025831923,3.03976806,21265.0,21264.0,1.71739748]
[1674025832175,3.03976806,21265.0,21264.0,1.82979477]
[1674025833736,3.03976806,21265.0,21264.0,1.82982453]
[1674025833999,3.03976806,21265.0,21264.0,1.66067179]
[1674025834260,3.03976806,21265.0,21264.0,2.24219569]
[1674025834806,3.03976806,21265.0,21264.0,1.84632895]
[1674025835074,2.29911927,21265.0,21264.0,1.84632895]
[1674025835367,2.29911927,21265.0,21264.0,2.15904821]
[1674025835624,2.29911927,21265.0,21264.0,1.84632895]
[1674025835914,2.29911927,21265.0,21264.0,2.01739598]
[1674025836174,2.29911927,21265.0,21264.0,2.24281631]
[1674025836441,2.29911927,21265.0,21264.0,2.01739598]
[1674025836697,2.29911927,21265.0,21264.0,2.24281605]
[1674025836950,2.29911927,21265.0,21264.0,2.01739598]
[1674025837510,2.29911927,21265.0,21264.0,2.24278254]
[1674025838027,2.29911927,21265.0,21264.0,2.01739598]
[1674025839357,2.29911927,21265.0,21264.0,2.24278478]
[1674025839617,2.29911927,21265.0,21264.0,1.94278478]
[1674025839932,2.29911927,21265.0,21264.0,1.71725013]
[1674025840956,2.29911927,21265.0,21264.0,1.66860578]
[1674025841315,2.29911927,21265.0,21264.0,1.24327925]
[1674025841823,2.29911927,21265.0,21264.0,1.66920838]
[1674025843315,2.29911927,21265.0,21264.0,1.07424621]
[1674025843594,2.29911927,21265.0,21264.0,1.24327925]
[1674025844380,2.29911927,21265.0,21264.0,1.07424621]
[1674025845996,2.29911927,21265.0,21264.0,1.24327925]
[1674025846765,2.29911927,21265.0,21264.0,1.07424621]
[1674025848072,2.29911927,21265.0,21264.0,0.60396821]
[1674025848334,2.40981927,21265.0,21264.0,0.60396821]
[1674025848882,2.29911927,21265.0,21264.0,1.19910917]
[1674025849202,2.29911927,21265.0,21264.0,1.66938725]
[1674025849456,2.29911927,21265.0,21264.0,1.78208584]
[1674025849964,2.29911927,21265.0,21264.0,2.08208584]
[1674025850228,2.29911927,21265.0,21264.0,1.78208584]
[1674025850712,2.29911927,21265.0,21264.0,2.08208584]
[1674025851484,2.29911927,21265.0,21264.0,1.9130528]
[1674025852014,2.29911927,21265.0,21264.0,2.08212326]
[1674025853809,2.29911927,21265.0,21264.0,2.08211935]
[1674025854958,2.29911927,21265.0,21264.0,1.9130528]
[1674025855498,2.29911927,21265.0,21264.0,2.19481983]
[1674025857271,2.29911927,21265.0,21264.0,1.9130528]
[1674025857804,2.29901456,21265.0,21264.0,1.9130528]
[1674025858106,2.29901456,21265.0,21264.0,1.78212797]
[1674025860453,2.29901456,21265.0,21264.0,1.6130528]
[1674025860709,2.29901456,21265.0,21264.0,1.78214168]
[1674025864058,2.29901456,21265.0,21264.0,1.78215867]
[1674025864319,2.29901456,21265.0,21264.0,1.78216472]
[1674025865094,2.29901456,21265.0,21264.0,1.6130528]
[1674025867183,2.29901456,21265.0,21264.0,1.89481983]
[1674025869019,2.29901456,21265.0,21264.0,2.19481983]
[1674025869279,2.29901456,21265.0,21264.0,1.89481983]
[1674025869827,2.29901456,21265.0,21264.0,2.19481983]
[1674025870073,2.29901456,21265.0,21264.0,1.89481983]
[1674025871310,2.29901456,21265.0,21264.0,1.6130528]
[1674025871864,2.29901456,21265.0,21264.0,1.89481983]
[1674025872746,2.29901456,21265.0,21264.0,1.67478603]
[1674025873014,2.29901456,21265.0,21264.0,1.393019]
[1674025874091,2.29901456,21265.0,21264.0,1.67478603]
[1674025875107,2.29901456,21265.0,21264.0,1.56216999]
[1674025875640,2.29901456,21265.0,21264.0,1.393019]
[1674025876380,2.29901456,21265.0,21264.0,1.56220193]
[1674025876661,2.29901456,21265.0,21264.0,1.393019]
[1674025876922,2.29901456,21265.0,21264.0,1.97478603]
[1674025877181,2.29901456,21265.0,21264.0,1.44939723]
[1674025877717,2.29901456,21265.0,21264.0,1.67498123]
[1674025883348,2.29901456,21265.0,21264.0,1.3932142]
[1674025883849,2.29901456,21265.0,21264.0,1.67498123]
[1674025885389,2.29901456,21265.0,21264.0,1.74939723]
[1674025885653,2.29901456,21265.0,21264.0,1.4676302]
[1674025886159,2.29901456,21265.0,21264.0,1.74967226]
[1674025886410,2.29901456,21265.0,21264.0,1.44967327]
[1674025886659,2.29901456,21265.0,21264.0,1.74967327]
[1674025887190,2.29901456,21265.0,21264.0,1.44967327]
[1674025889501,2.29901456,21265.0,21264.0,1.4676302]
[1674025892127,2.35531784,21265.0,21264.0,1.4676302]
[1674025892633,1.61468396,21265.0,21264.0,2.02666317]
[1674025892913,1.55838068,21265.0,21264.0,2.02666317]
[1674025894705,1.55838068,21265.0,21264.0,2.02657692]
[1674025894937,1.55838068,21265.0,21264.0,1.68894395]
[1674025895524,1.55838068,21265.0,21264.0,1.46754395]
[1674025895751,1.55838068,21265.0,21264.0,1.42839011]
[1674025896061,1.55838068,21265.0,21264.0,1.74587465]
[1674025896317,1.55838068,21265.0,21264.0,1.54114595]
[1674025896591,1.55838068,21265.0,21264.0,1.63314595]
[1674025897954,1.55838068,21265.0,21264.0,1.46402849]
[1674025898775,1.55838068,21265.0,21264.0,1.74587465]
[1674025899083,1.55838068,21265.0,21264.0,1.52039011]
[1674025899332,1.55838068,21265.0,21264.0,1.82039011]
[1674025899626,1.55838068,21265.0,21264.0,1.82049218]
[1674025906228,1.55838068,21265.0,21264.0,1.52049218]
[1674025906788,1.55838068,21265.0,21264.0,1.82049218]
[1674025908348,1.55838068,21265.0,21264.0,1.82048975]
[1674025909412,1.55838068,21265.0,21264.0,1.53864602]
[1674025911498,1.55838068,21265.0,21264.0,1.52048417]
[1674025911775,1.55838068,21265.0,21264.0,1.82048417]
[1674025912789,1.55838068,21265.0,21264.0,2.04596131]
[1674025913562,1.55838068,21265.0,21264.0,1.82048417]
[1674025915272,1.55826856,21265.0,21264.0,1.82048417]
[1674025920542,1.55826856,21265.0,21264.0,1.53864602]
[1674025920794,1.55826856,21265.0,21264.0,1.82053402]
[1674025924286,1.55826856,21265.0,21264.0,1.52043195]
[1674025924783,1.55826856,21265.0,21264.0,1.82043195]
[1674025925333,1.55826856,21265.0,21264.0,1.82047689]
[1674025925829,1.55826856,21265.0,21264.0,1.53854395]
[1674025926659,1.55826856,21265.0,21264.0,1.5204812]
[1674025927701,1.55826856,21265.0,21264.0,1.8204812]
[1674025927992,1.55826856,21265.0,21264.0,1.82058327]
[1674025929506,1.55826856,21265.0,21264.0,1.53864602]
[1674025936059,1.55826856,21265.0,21264.0,1.23854395]
[1674025936570,1.55826856,21265.0,21264.0,1.52062156]
[1674025937578,1.55826856,21265.0,21264.0,1.82062156]
[1674025937838,1.55826856,21265.0,21264.0,1.53854395]
[1674025938367,1.55820264,21265.0,21264.0,1.53854395]
[1674025939418,1.55820264,21265.0,21264.0,1.53864602]
[1674025940230,1.55820264,21265.0,21264.0,1.23854395]
[1674025940496,1.55820264,21265.0,21264.0,1.52063748]
[1674025940786,1.55820264,21265.0,21264.0,1.23854395]
[1674025941039,1.55820264,21265.0,21264.0,1.53854395]
[1674025943818,1.55820264,21265.0,21264.0,1.53864602]
[1674025944111,1.55820264,21265.0,21264.0,1.53854395]
[1674025944373,1.55820264,21265.0,21264.0,1.52063368]
[1674025944641,1.55820264,21265.0,21264.0,1.74631139]
[1674025945156,1.55820264,21265.0,21264.0,1.74631166]
[1674025945447,1.55820264,21265.0,21264.0,1.63345322]
[1674025945699,1.55170264,21265.0,21264.0,1.46422193]
[1674025946313,1.55170264,21265.0,21264.0,1.63345345]
[1674025947552,1.55170264,21265.0,21264.0,1.46422193]
[1674025947817,1.60113305,21265.0,21264.0,1.46422193]
[1674025949344,1.60113305,21265.0,21264.0,1.63340965]
[1674025949969,1.60113305,21265.0,21264.0,1.46422193]
[1674025950137,1.60113305,21265.0,21264.0,1.464324]
[1674025951235,1.60113305,21265.0,21264.0,1.63351498]
[1674025952018,1.60113305,21265.0,21264.0,1.464324]
[1674025952538,1.60113305,21265.0,21264.0,1.63349881]
[1674025952805,1.60113305,21265.0,21264.0,1.74641373]
[1674025954124,1.60113305,21265.0,21264.0,1.74631166]
[1674025954653,1.60113305,21265.0,21264.0,2.04619085]
[1674025954915,1.60113305,21265.0,21264.0,1.82063368]
[1674025956026,1.60113305,21265.0,21264.0,1.82048832]
[1674025956600,1.60113305,21265.0,21264.0,1.53854395]
[1674025956853,1.54850264,21265.0,21264.0,1.53854395]
[1674025957480,0.80787709,21265.0,21264.0,1.64924395]
[1674025959509,0.80787709,21265.0,21264.0,2.11952195]
[1674025962659,0.80787709,21265.0,21264.0,2.00882195]
[1674025963708,0.80787709,21265.0,21264.0,2.29068769]
[1674025965506,0.80787709,21265.0,21264.0,2.00882195]
[1674025970752,0.80787709,21265.0,21264.0,2.34645492]
[1674025971275,0.80787709,21265.0,21264.0,2.12924284]
[1674025971819,0.80787709,21265.0,21264.0,2.66965238]
[1674025972327,0.80787709,21265.0,21264.0,2.34944284]
[1674025973162,0.80787709,21265.0,21264.0,3.26712363]
[1674025973363,0.00653272,21266.0,21265.0,0.23078456]
[1674025973622,0.00653272,21266.0,21265.0,2.66918583]
[1674025974195,0.00653272,21266.0,21265.0,3.26394354]
[1674025974910,0.00753272,21266.0,21265.0,3.0205399]
[1674025975165,0.00753272,21266.0,21265.0,2.42578219]
[1674025975420,0.00753272,21266.0,21265.0,2.08780456]
[1674025975941,0.00753272,21266.0,21265.0,2.4112082]
[1674025976748,0.00753272,21266.0,21265.0,2.08780456]
[1674025977565,4.716e-05,21266.0,21265.0,2.08780456]
[1674025978400,4.716e-05,21266.0,21265.0,2.88840989]
[1674025978643,4.716e-05,21266.0,21265.0,3.22638752]
[1674025978897,4.716e-05,21266.0,21265.0,2.88840989]
[1674025979149,0.04711806,21266.0,21265.0,2.88840989]
[1674025979932,4.716e-05,21266.0,21265.0,2.88840989]
[1674025980722,4.716e-05,21266.0,21265.0,2.56500625]
[1674025981282,4.716e-05,21266.0,21265.0,2.88840989]
[1674025981791,4.716e-05,21266.0,21265.0,3.22638752]
[1674025982606,4.716e-05,21266.0,21265.0,2.88840989]
[1674025983108,0.04695071,21266.0,21265.0,3.61427409]
[1674025983376,0.04695071,21266.0,21265.0,3.22638752]
[1674025983880,4.716e-05,21266.0,21265.0,3.22638752]
[1674025984135,4.716e-05,21266.0,21265.0,2.88840989]
[1674025984374,4.716e-05,21266.0,21265.0,3.27468353]
[1674025984622,4.716e-05,21266.0,21265.0,3.22638752]
[1674025985172,0.04468337,21266.0,21265.0,3.22638752]
[1674025985443,0.04468337,21266.0,21265.0,3.22627944]
[1674025985962,4.716e-05,21266.0,21265.0,2.88830181]
[1674025986277,4.716e-05,21266.0,21265.0,3.61255308]
[1674025986523,4.716e-05,21266.0,21265.0,3.22627944]
[1674025987057,0.00480988,21267.0,21266.0,0.15001284]
[1674025987334,0.00480988,21267.0,21266.0,2.72789417]
[1674025987877,0.00480988,21267.0,21266.0,2.40449053]
[1674025988129,0.00480988,21267.0,21266.0,3.20792742]
[1674025988390,0.00480988,21267.0,21266.0,3.93259921]
[1674025988639,0.00580988,21267.0,21266.0,3.29392742]
[1674025989119,0.00580988,21267.0,21266.0,4.01858614]
[1674025989653,0.00480988,21267.0,21266.0,3.93258614]
[1674025989923,0.00480988,21267.0,21266.0,3.68660851]
[1674025990183,0.00480988,21267.0,21266.0,3.20792742]
[1674025990423,0.00480988,21267.0,21266.0,3.29992742]
[1674025990929,0.00480988,21267.0,21266.0,4.02456072]
[1674025991442,0.00480988,21267.0,21266.0,3.45147309]
[1674025991960,0.00480988,21267.0,21266.0,3.78945072]
[1674025992215,0.00480988,21267.0,21266.0,3.06481742]
[1674025992499,0.00480988,21267.0,21266.0,3.45128265]
[1674025992806,0.00480988,21267.0,21266.0,3.78929061]
[1674025995509,0.00480988,21267.0,21266.0,3.82770217]
[1674025995774,0.00480988,21267.0,21266.0,3.48972454]
[1674025996032,0.00480988,21267.0,21266.0,3.8272924]
[1674025996546,0.00480988,21267.0,21266.0,3.48972454]
[1674025997084,3.022e-05,21267.0,21266.0,3.48972454]
[1674025997594,0.00010585,21269.0,21267.0,0.15]
[1674025997879,0.00010585,21269.0,21268.0,2.46865769]
[1674025998180,0.00010585,21269.0,21268.0,3.51816933]
[1674025998446,0.00010585,21269.0,21268.0,3.19476569]